fUSD/lending_fUSD_20250526
["ID","MTS","AMOUNT","RATE_DAILY","PERIOD"]
[362384021,1748242232477,-500.0,0.00019973,2]
[362384023,1748242232487,-500.0,0.00019973,2]
[362384025,1748242232497,-811.66128715,0.0001999,2]
[362384027,1748242232507,-819.64209111,0.0001999,2]
[362384029,1748242232516,-159.10605807,0.0001999,2]
[362384031,1748242232525,-152.41,0.0001999,2]
[362384033,1748242232534,-167.51564873,0.0001999,2]
[362384035,1748242232548,-167.51564873,0.0001999,2]
[362384036,1748242232557,-167.51564873,0.0001999,2]
[362384038,1748242232566,-420.0,0.00019999,2]
[362384040,1748242232575,-420.0,0.00019999,2]
[362384042,1748242232585,-427.03462847,0.00019999,2]
[362384044,1748242232593,-20246.68030305,0.00019999,2]
[362384046,1748242232603,-432.42816972,0.00019999,2]
[362384048,1748242232612,-420.0,0.00019999,2]
[362384050,1748242232621,-440.51243059,0.00019999,2]
[362384052,1748242232631,-420.0,0.00019999,2]
[362384054,1748242232641,-420.0,0.00019999,2]
[362384056,1748242232650,-420.0,0.00019999,2]
[362384058,1748242232659,-518.62,0.00019999,2]
[362384059,1748242232669,-420.0,0.00019999,2]
[362384060,1748242232680,-435.41877038,0.00019999,2]
[362384061,1748242232689,-420.0,0.00019999,2]
[362384062,1748242232700,-437.08309874,0.00019999,2]
[362384063,1748242232709,-561.78950863,0.00019999,2]
[362384064,1748242232720,-500.0,0.00019999,2]
[362384065,1748242232730,-494.81019021,0.00019999,2]
[362384066,1748242232740,-472.73,0.00019999,2]
[362384067,1748242232751,-500.0,0.00019999,2]
[362384068,1748242232761,-500.0,0.00019999,2]
[362384069,1748242232771,-500.0,0.00019999,2]
[362384070,1748242232782,-500.0,0.00019999,2]
[362384071,1748242232795,-500.0,0.00019999,2]
[362384072,1748242232808,-500.0,0.00019999,2]
[362384073,1748242232823,-174.05282742,0.00019999,2]
[362384074,1748242232837,-420.0,0.00019999,2]
[362384075,1748242232849,-768.34031705,0.00019999,2]
[362384077,1748242232860,-420.0,0.00019999,2]
[362384079,1748242232870,-420.0,0.00019999,2]
[362384081,1748242232883,-420.0,0.00019999,2]
[362384083,1748242232894,-420.0,0.00019999,2]
[362384085,1748242232905,-420.0,0.00019999,2]
[362384087,1748242232917,-503.7635892,0.00019999,2]
[362384090,1748242232928,-420.0,0.00019999,2]
[362384092,1748242232940,-420.0,0.00019999,2]
[362384094,1748242232952,-420.0,0.00019999,2]
[362384096,1748242232964,-420.0,0.00019999,2]
[362384099,1748242232976,-420.0,0.00019999,2]
[362384101,1748242232987,-420.0,0.00019999,2]
[362384103,1748242232999,-420.0,0.00019999,2]
[362384105,1748242233011,-420.0,0.00019999,2]
[362384107,1748242233021,-420.0,0.00019999,2]
[362384109,1748242233031,-420.0,0.00019999,2]
[362384111,1748242233044,-420.0,0.00019999,2]
[362384113,1748242233055,-420.0,0.00019999,2]
[362384116,1748242233068,-420.0,0.00019999,2]
[362384118,1748242233080,-381.57400027,0.00019999,2]
[362384120,1748242233092,-425.54716039,0.00019999,2]
[362384122,1748242233104,-420.0,0.00019999,2]
[362384125,1748242233116,-420.0,0.00019999,2]
[362384127,1748242233129,-422.63850911,0.00019999,2]
[362384129,1748242233141,-436.96833602,0.00019999,2]
[362384131,1748242233153,-436.30683735,0.00019999,2]
[362384134,1748242233165,-294.39472862,0.00019999,2]
[362384136,1748242233178,-420.0,0.00019999,2]
[362384138,1748242233190,-420.0,0.00019999,2]
[362384140,1748242233202,-420.0,0.00019999,2]
[362384143,1748242233214,-420.0,0.00019999,2]
[362384145,1748242233226,-420.0,0.00019999,2]
[362384147,1748242233238,-460.24522057,0.00019999,2]
[362384149,1748242233248,-420.0,0.00019999,2]
[362384151,1748242233260,-420.0,0.00019999,2]
[362384154,1748242233272,-420.0,0.00019999,2]
[362384156,1748242233284,-420.0,0.00019999,2]
[362384158,1748242233296,-420.0,0.00019999,2]
[362384160,1748242233307,-420.0,0.00019999,2]
[362384163,1748242233318,-420.0,0.00019999,2]
[362384165,1748242233329,-235.32244851,0.00019999,2]
[362384167,1748242233341,-548.12604793,0.00019999,2]
[362384169,1748242233351,-420.0,0.00019999,2]
[362384171,1748242233361,-420.0,0.00019999,2]
[362384173,1748242233371,-420.0,0.00019999,2]
[362384175,1748242233382,-420.0,0.00019999,2]
[362384177,1748242233395,-420.0,0.00019999,2]
[362384179,1748242233408,-420.0,0.00019999,2]
[362384182,1748242233421,-193.86,0.00019999,2]
[362384184,1748242233431,-448.26639161,0.00019999,2]
[362384186,1748242233441,-328.13463268,0.00019999,2]
[362384188,1748242233451,-189.90045023,0.00019999,2]
[362384190,1748242233462,-180.73835908,0.00019999,2]
[362384192,1748242233473,-186.96364046,0.00019999,2]
[362384194,1748242233484,-192.80266313,0.00019999,2]
[362384197,1748242233496,-500.0,0.00019999,2]
[362384199,1748242233508,-417.65378743,0.00019999,2]
[362384201,1748242233519,-500.0,0.00019999,2]
[362384203,1748242233530,-500.0,0.00019999,2]
[362384204,1748242233542,-1577.0,0.00019999,2]
[362384205,1748242233552,-279.71252306,0.0002,2]
[362384206,1748242233563,-4000.0,0.0002,4]
[362384207,1748242233575,-4000.0,0.0002,4]
[362384208,1748242233586,-4000.0,0.0002,4]
[362384209,1748242233596,-4000.0,0.0002,4]
[362384210,1748242233606,-4000.0,0.0002,4]
[362384211,1748242233618,-4000.0,0.0002,4]
[362384212,1748242233630,-388934.24796526,0.0002,2]
[362384213,1748242233647,-14778.8886682,0.0002,2]
[362384214,1748242233661,-44603.69571874,0.0002,2]
[362384215,1748242233687,-449.91434779,0.00019999,2]
[362384216,1748242233698,-4927.73645221,0.0002,2]
[362384217,1748242233711,-598.88591085,0.0002,2]
[362384218,1748242233724,-5760.14896224,0.0002,2]
[362384219,1748242233737,-7719.29338366,0.0002,2]
[362384220,1748242233750,-5085.13443448,0.0002,2]
[362384221,1748242233763,-3222.14121635,0.0002,2]
[362384222,1748242233778,-169114.22,0.0002,2]
[362384223,1748242233791,-425.18333004,0.0002,2]
[362384224,1748242233804,-16783.66364517,0.0002,2]
[362384226,1748242237911,-430.94847076,0.00019999,2]
[362384227,1748242237923,-534.05152924,0.0002,2]
[362384228,1748242237949,-3660.76925576,0.0002,2]
[362384229,1748242238661,-715.16096669,0.0002,2]
[362384230,1748242238675,-470.12582864,0.0002,2]
[362384231,1748242238689,-5495.66634526,0.0002,2]
[362384232,1748242238701,-101915.34005214,0.0002,2]
[362384235,1748242240063,-441.19590479,0.00019999,2]
[362384236,1748242240074,-840.80409521,0.0002,2]
[362384237,1748242240087,-79217.25254819,0.0002,2]
[362384238,1748242240098,-570155.42912138,0.0002,2]
[362384239,1748242240205,-420.0,0.00019999,2]
[362384240,1748242240217,-7605.54,0.0002,2]
[362384241,1748242240230,-1137.7772721,0.0002,2]
[362384242,1748242240297,-361.98185347,0.0002,2]
[362384243,1748242240481,-801.00792515,0.0002,2]
[362384244,1748242240494,-733.73656783,0.0002,2]
[362384245,1748242240507,-999.89332,0.0002,2]
[362384246,1748242240521,-9327.0,0.0002,2]
[362384261,1748242246039,-469.99,0.0001998,2]
[362384262,1748242246049,-420.0,0.00019999,2]
[362384263,1748242246059,-420.0,0.00019999,2]
[362384264,1748242246068,-344.49305487,0.00019999,2]
[362384265,1748242246078,-420.0,0.00019999,2]
[362384266,1748242246088,-450.01513228,0.00019999,2]
[362384267,1748242246097,-420.0,0.00019999,2]
[362384268,1748242246107,-60931.88925573,0.0002,2]
[362384269,1748242246119,-16680.57486744,0.0002,2]
[362384270,1748242246130,-578.88862156,0.0002,2]
[362384271,1748242246149,-65983.08584853,0.0002,2]
[362384272,1748242246167,-7537.45222066,0.0002,2]
[362384273,1748242246178,-19904.84880599,0.0002,2]
[362384274,1748242246189,-857.30599154,0.0002,2]
[362384275,1748242246200,-298.67000001,0.0002,2]
[362384276,1748242246283,-1000.0,0.0002,2]
[362384277,1748242246401,-16330.3829492,0.0002,2]
[362384280,1748242330628,1112.0,0.00017,6]
[362384285,1748242425803,250.0,0.00015,2]
[362384286,1748242426882,300.0,0.00017,2]
[362384299,1748242634306,241.68,0.00013699,2]
[362384309,1748242932465,2590.15071192,0.00026,120]
[362384347,1748243324047,-208.0,0.00017762,2]
[362384348,1748243324071,-163.48146085,0.00018432,2]
[362384349,1748243324096,-4628.51853915,0.0001845,2]
[362384350,1748243325598,-371.48146085,0.0001845,2]
[362384359,1748243422901,-291.92,0.00018739,2]
[362384360,1748243422928,-150.0,0.00018761,7]
[362384361,1748243422956,-178.71794524,0.000188,2]
[362384362,1748243422981,-160.58,0.00018803,2]
[362384363,1748243423008,-1000.0,0.0001883,2]
[362384364,1748243423032,-453.43,0.00018904,2]
[362384365,1748243423059,-207.4,0.00018999,2]
[362384366,1748243423084,-350.0,0.00019,2]
[362384367,1748243423108,-453.63,0.00019178,2]
[362384368,1748243423132,-151.0,0.00019197,2]
[362384369,1748243423161,-668.65185757,0.00019197,2]
[362384370,1748243423187,-200.0,0.000192,7]
[362384371,1748243423211,-500.0,0.00019204,2]
[362384372,1748243423236,-1200.0,0.00019208,2]
[362384373,1748243423263,-300.0,0.00019208,2]
[362384374,1748243423289,-8334.67019719,0.00019209,2]
[362384383,1748243432101,-800.0,0.00019209,2]
[362384384,1748243432154,-865.32980281,0.00019209,2]
[362384385,1748243432164,-500.0,0.000193,7]
[362384386,1748243432174,-700.0,0.000194,7]
[362384387,1748243432184,-1000.0,0.000195,7]
[362384388,1748243432193,-806.25,0.00019589,2]
[362384389,1748243432203,-1612.26,0.00019589,2]
[362384390,1748243432213,-470.02000967,0.00019589,2]
[362384391,1748243432226,-335.97999033,0.00019589,2]
[362384392,1748243432236,-251.228428,0.00019599,2]
[362384393,1748243432245,-1300.0,0.000196,7]
[362384394,1748243432255,-152.22,0.0001967,2]
[362384395,1748243432265,-104932.10044546,0.000197,2]
[362384396,1748243432278,-1149.5017,0.000197,2]
[362384397,1748243432290,-1099.92767695,0.000197,2]
[362384398,1748243432310,-825.7482,0.000197,2]
[362384399,1748243432322,-3556.00000029,0.000197,2]
[362384400,1748243432440,-2578.84791083,0.000197,2]
[362384406,1748243432723,-263.69814271,0.000197,2]
[362384427,1748243438438,-680.42059505,0.000197,2]
[362384435,1748243438580,-3292.5,0.000197,2]
[362384437,1748243438592,-1272.91965667,0.000197,2]
[362384440,1748243438611,-3912.2173612,0.000197,2]
[362384481,1748243440172,-385.62838044,0.000197,2]
[362384482,1748243440185,-1974.75705949,0.000197,2]
[362384483,1748243440403,-58882.29898291,0.000197,2]
[362384484,1748243440414,-200.0,0.000197,7]
[362384485,1748243440423,-500.29,0.00019715,2]
[362384486,1748243440433,-500.54,0.00019715,2]
[362384487,1748243440442,-170.26,0.00019726,2]
[362384488,1748243440451,-1158.81,0.00019726,2]
[362384489,1748243440461,-340.34,0.00019726,2]
[362384490,1748243440471,-170.24,0.00019726,2]
[362384491,1748243440480,-170.24,0.00019726,2]
[362384492,1748243440490,-340.48,0.00019726,2]
[362384493,1748243440499,-353.65,0.00019726,2]
[362384494,1748243440509,-353.65,0.00019726,2]
[362384495,1748243440518,-353.65,0.00019726,2]
[362384496,1748243440529,-151.59,0.00019739,2]
[362384497,1748243440539,-151.1,0.00019739,2]
[362384498,1748243440548,-150.37,0.00019739,2]
[362384499,1748243440558,-152.73,0.00019739,2]
[362384500,1748243440568,-193.63417257,0.00019745,2]
[362384501,1748243440577,-506.48,0.00019761,2]
[362384502,1748243440587,-509.55,0.00019761,2]
[362384503,1748243440598,-493.45,0.00019761,2]
[362384504,1748243440614,-508.02,0.00019761,2]
[362384505,1748243440625,-508.2,0.00019761,2]
[362384506,1748243440634,-502.85,0.00019761,2]
[362384507,1748243440644,-491.87,0.00019761,2]
[362384508,1748243440653,-495.68,0.00019761,2]
[362384509,1748243440663,-507.59,0.00019762,2]
[362384510,1748243440673,-506.03,0.00019762,2]
[362384511,1748243440683,-497.2,0.00019762,2]
[362384512,1748243440692,-200.0,0.000198,7]
[362384513,1748243440701,-4059.0,0.00019845,2]
[362384514,1748243440711,-881.0,0.00019845,2]
[362384515,1748243440720,-154.0,0.00019845,2]
[362384516,1748243440729,-934.38391815,0.00019899,2]
[362384517,1748243440739,-934.38391812,0.00019899,2]
[362384518,1748243440749,-934.38391812,0.00019899,2]
[362384519,1748243440758,-934.38391812,0.00019899,2]
[362384520,1748243440767,-934.38391812,0.00019899,2]
[362384521,1748243440777,-44219.36467979,0.000199,2]
[362384522,1748243440786,-1708.39,0.000199,2]
[362384523,1748243440796,-446.71047194,0.000199,2]
[362384524,1748243440806,-200.0,0.000199,7]
[362384525,1748243440815,-2487.4754,0.000199,2]
[362384526,1748243440824,-505.30049147,0.000199,2]
[362384527,1748243440834,-12679.49307932,0.000199,2]
[362384528,1748243440843,-151.18003133,0.000199,2]
[362384530,1748243440853,-3668.38157324,0.000199,2]
[362384532,1748243440862,-151.18003133,0.000199,2]
[362384533,1748243440871,-151.18003133,0.000199,2]
[362384536,1748243440881,-223.45908684,0.000199,2]
[362384538,1748243440891,-4688.88497734,0.000199,2]
[362384539,1748243440900,-152.05102421,0.000199,2]
[362384541,1748243440909,-206.43273751,0.000199,2]
[362384544,1748243440919,-2396.389,0.00019921,2]
[362384545,1748243440928,-1313.872,0.0001995,2]
[362384548,1748243440937,-179.261,0.0001995,2]
[362384550,1748243440947,-216.04182757,0.00019973,2]
[362384552,1748243440959,-501.74323714,0.00019973,2]
[362384554,1748243440968,-435.54980128,0.00019973,2]
[362384555,1748243440979,-277.01297867,0.00019973,2]
[362384557,1748243440988,-540.0,0.00019973,2]
[362384559,1748243440998,-501.37693936,0.00019973,2]
[362384561,1748243441007,-500.0,0.00019973,2]
[362384563,1748243441017,-500.0,0.00019973,2]
[362384565,1748243441026,-501.80895195,0.00019973,2]
[362384567,1748243441037,-500.0,0.00019973,2]
[362384569,1748243441047,-500.0,0.00019973,2]
[362384571,1748243441057,-150.0,0.00019973,2]
[362384573,1748243441066,-500.0,0.00019973,2]
[362384575,1748243441076,-500.0,0.00019973,2]
[362384577,1748243441085,-200.0,0.00019973,2]
[362384579,1748243441096,-500.0,0.0001998,2]
[362384581,1748243441105,-499.98,0.0001998,2]
[362384583,1748243441115,-500.0,0.0001998,2]
[362384585,1748243441126,-860.7619936,0.0001999,2]
[362384586,1748243441137,-860.7619936,0.0001999,2]
[362384587,1748243441147,-860.7619936,0.0001999,2]
[362384588,1748243441156,-156.159,0.00019998,2]
[362384589,1748243441165,-426.26204596,0.00019998,2]
[362384590,1748243441174,-243.857604,0.00019998,2]
[362384591,1748243441184,-632.516652,0.00019998,2]
[362384592,1748243441193,-420.0,0.00019998,2]
[362384593,1748243441203,-420.0,0.00019998,2]
[362384594,1748243441215,-420.0,0.00019998,2]
[362384595,1748243441228,-510.65598424,0.00019998,2]
[362384596,1748243441241,-420.0,0.00019998,2]
[362384597,1748243441256,-420.0,0.00019998,2]
[362384598,1748243441269,-459.53,0.00019998,2]
[362384600,1748243441282,-532.38194896,0.00019998,2]
[362384602,1748243441297,-546.99,0.00019998,2]
[362384604,1748243441309,-491.27389932,0.00019998,2]
[362384607,1748243441321,-1092.62,0.00019998,2]
[362384609,1748243441334,-420.74346167,0.00019998,2]
[362384611,1748243441346,-1201.4,0.00019998,2]
[362384613,1748243441357,-433.09,0.00019998,2]
[362384616,1748243441370,-420.0,0.00019998,2]
[362384618,1748243441381,-420.0,0.00019998,2]
[362384620,1748243441394,-177.93988708,0.00019999,2]
[362384622,1748243441406,-2000.0,0.00019999,2]
[362384625,1748243441418,-420.0,0.00019999,2]
[362384627,1748243441428,-420.0,0.00019999,2]
[362384629,1748243441439,-420.0,0.00019999,2]
[362384631,1748243441450,-420.0,0.00019999,2]
[362384633,1748243441462,-420.0,0.00019999,2]
[362384635,1748243441474,-420.0,0.00019999,2]
[362384638,1748243441485,-420.0,0.00019999,2]
[362384640,1748243441497,-420.0,0.00019999,2]
[362384642,1748243441508,-420.0,0.00019999,2]
[362384644,1748243441520,-420.0,0.00019999,2]
[362384647,1748243441532,-420.0,0.00019999,2]
[362384649,1748243441545,-420.0,0.00019999,2]
[362384651,1748243441556,-420.0,0.00019999,2]
[362384653,1748243441568,-519.18547977,0.00019999,2]
[362384656,1748243441579,-428.35679171,0.00019999,2]
[362384658,1748243441592,-460.95549426,0.00019999,2]
[362384660,1748243441603,-448.64001013,0.00019999,2]
[362384662,1748243441616,-474.69763984,0.00019999,2]
[362384665,1748243441628,-446.00176154,0.00019999,2]
[362384667,1748243441640,-425.73031596,0.00019999,2]
[362384669,1748243441652,-445.16894402,0.00019999,2]
[362384671,1748243441663,-524.72203394,0.00019999,2]
[362384674,1748243441675,-420.0,0.00019999,2]
[362384676,1748243441686,-242.4657836,0.00019999,2]
[362384678,1748243441698,-445.50313031,0.00019999,2]
[362384680,1748243441712,-529.46033496,0.00019999,2]
[362384683,1748243441723,-420.0,0.00019999,2]
[362384685,1748243441734,-442.87049237,0.00019999,2]
[362384687,1748243441745,-426.22966851,0.00019999,2]
[362384689,1748243441757,-441.57869115,0.00019999,2]
[362384691,1748243441767,-389.87213853,0.00019999,2]
[362384693,1748243441777,-436.04871368,0.00019999,2]
[362384695,1748243441788,-215.91445366,0.00019999,2]
[362384697,1748243441798,-457.58739334,0.00019999,2]
[362384700,1748243441810,-539.13031695,0.00019999,2]
[362384702,1748243441824,-447.87530308,0.00019999,2]
[362384704,1748243441835,-420.0,0.00019999,2]
[362384706,1748243441845,-446.334967,0.00019999,2]
[362384708,1748243441855,-483.92680274,0.00019999,2]
[362384710,1748243441866,-420.0,0.00019999,2]
[362384712,1748243441876,-151.65035723,0.00019999,2]
[362384715,1748243441888,-439.15996533,0.00019999,2]
[362384717,1748243441903,-563.45256473,0.00019999,2]
[362384719,1748243441915,-432.09984313,0.00019999,2]
[362384721,1748243441927,-403.97979847,0.00019999,2]
[362384723,1748243441938,-448.0397211,0.00019999,2]
[362384725,1748243441948,-449.76129238,0.00019999,2]
[362384727,1748243441962,-293.67626037,0.00019999,2]
[362384729,1748243441973,-420.0,0.00019999,2]
[362384731,1748243441983,-411.81452674,0.00019999,2]
[362384734,1748243441994,-152.03454684,0.00019999,2]
[362384736,1748243442006,-424.34747685,0.00019999,2]
[362384738,1748243442016,-425.49727917,0.00019999,2]
[362384740,1748243442027,-420.0,0.00019999,2]
[362384742,1748243442038,-420.0,0.00019999,2]
[362384743,1748243442049,-424.27284376,0.00019999,2]
[362384744,1748243442062,-420.0,0.00019999,2]
[362384745,1748243442073,-420.0,0.00019999,2]
[362384746,1748243442084,-420.0,0.00019999,2]
[362384747,1748243442096,-265.72643901,0.00019999,2]
[362384748,1748243442107,-420.0,0.00019999,2]
[362384749,1748243442118,-420.0,0.00019999,2]
[362384750,1748243442130,-421.34177603,0.00019999,2]
[362384751,1748243442141,-469.40246843,0.00019999,2]
[362384752,1748243442152,-420.0,0.00019999,2]
[362384753,1748243442163,-420.0,0.00019999,2]
[362384754,1748243442175,-446.81512574,0.00019999,2]
[362384755,1748243442186,-434.88027227,0.00019999,2]
[362384756,1748243442197,-422.918372,0.00019999,2]
[362384757,1748243442208,-420.0,0.00019999,2]
[362384758,1748243442219,-348.09664188,0.00019999,2]
[362384759,1748243442230,-500.78440052,0.00019999,2]
[362384760,1748243442241,-420.0,0.00019999,2]
[362384761,1748243442253,-420.0,0.00019999,2]
[362384762,1748243442264,-558.97131378,0.00019999,2]
[362384763,1748243442276,-427.00185746,0.00019999,2]
[362384764,1748243442287,-420.0,0.00019999,2]
[362384765,1748243442298,-420.0,0.00019999,2]
[362384766,1748243442309,-420.0,0.00019999,2]
[362384767,1748243442320,-390.69227242,0.00019999,2]
[362384768,1748243442331,-420.0,0.00019999,2]
[362384769,1748243442342,-420.0,0.00019999,2]
[362384770,1748243442354,-420.0,0.00019999,2]
[362384771,1748243442365,-164.21677986,0.00019999,2]
[362384772,1748243442376,-420.0,0.00019999,2]
[362384773,1748243442387,-420.0,0.00019999,2]
[362384774,1748243442398,-342.86911917,0.00019999,2]
[362384775,1748243442409,-420.0,0.00019999,2]
[362384776,1748243442420,-443.44922869,0.00019999,2]
[362384777,1748243442431,-428.71658652,0.00019999,2]
[362384778,1748243442443,-538.77048822,0.00019999,2]
[362384779,1748243442454,-375.7429692,0.00019999,2]
[362384780,1748243442465,-290.7,0.00019999,2]
[362384781,1748243442476,-263.59798469,0.00019999,2]
[362384782,1748243442487,-421.37644807,0.00019999,2]
[362384783,1748243442498,-358.61820385,0.00019999,2]
[362384784,1748243442509,-420.0,0.00019999,2]
[362384785,1748243442520,-420.0,0.00019999,2]
[362384786,1748243442531,-502.8193149,0.00019999,2]
[362384787,1748243442542,-383.44585775,0.00019999,2]
[362384788,1748243442554,-420.0,0.00019999,2]
[362384789,1748243442565,-379.43532036,0.00019999,2]
[362384790,1748243442576,-432.70157341,0.00019999,2]
[362384791,1748243442587,-500.0,0.00019999,2]
[362384792,1748243442611,-420.0,0.00019999,2]
[362384793,1748243442623,-544.36035454,0.00019999,2]
[362384794,1748243442634,-338.79033459,0.00019999,2]
[362384795,1748243442646,-420.0,0.00019999,2]
[362384796,1748243442657,-420.0,0.00019999,2]
[362384797,1748243442668,-443.89903887,0.00019999,2]
[362384798,1748243442679,-261.59,0.00019999,2]
[362384799,1748243442690,-420.0,0.00019999,2]
[362384800,1748243442701,-464.95632062,0.00019999,2]
[362384801,1748243442714,-420.0,0.00019999,2]
[362384802,1748243442725,-436.94397347,0.00019999,2]
[362384803,1748243442736,-426.88883635,0.00019999,2]
[362384804,1748243442747,-431.63072478,0.00019999,2]
[362384805,1748243442758,-420.0,0.00019999,2]
[362384806,1748243442769,-432.90459341,0.00019999,2]
[362384807,1748243442779,-429.48524002,0.00019999,2]
[362384808,1748243442790,-431.43882734,0.00019999,2]
[362384809,1748243442801,-420.0,0.00019999,2]
[362384810,1748243442812,-420.0,0.00019999,2]
[362384811,1748243442824,-420.0,0.00019999,2]
[362384812,1748243442836,-420.0,0.00019999,2]
[362384813,1748243442848,-420.0,0.00019999,2]
[362384814,1748243442860,-449.88244686,0.00019999,2]
[362384815,1748243442871,-420.0,0.00019999,2]
[362384816,1748243442883,-420.0,0.00019999,2]
[362384817,1748243442894,-420.0,0.00019999,2]
[362384818,1748243442904,-441.26369032,0.00019999,2]
[362384820,1748243442915,-430.35623554,0.00019999,2]
[362384822,1748243442926,-420.0,0.00019999,2]
[362384824,1748243442936,-420.0,0.00019999,2]
[362384827,1748243442947,-420.0,0.00019999,2]
[362384829,1748243442961,-436.05417063,0.00019999,2]
[362384831,1748243442972,-460.72516754,0.00019999,2]
[362384832,1748243442983,-433.72059028,0.00019999,2]
[362384835,1748243442995,-420.0,0.00019999,2]
[362384838,1748243443006,-420.0,0.00019999,2]
[362384840,1748243443017,-420.0,0.00019999,2]
[362384844,1748243443030,-437.25180438,0.00019999,2]
[362384848,1748243443042,-450.63840925,0.00019999,2]
[362384850,1748243443054,-420.0,0.00019999,2]
[362384851,1748243443066,-420.0,0.00019999,2]
[362384852,1748243443077,-370.0,0.00019999,2]
[362384854,1748243443087,-420.0,0.00019999,2]
[362384856,1748243443099,-428.08920239,0.00019999,2]
[362384859,1748243443110,-432.3573644,0.00019999,2]
[362384862,1748243443120,-427.75861846,0.00019999,2]
[362384865,1748243443131,-456.35941997,0.00019999,2]
[362384867,1748243443142,-441.57861787,0.00019999,2]
[362384869,1748243443153,-420.0,0.00019999,2]
[362384870,1748243443163,-420.0,0.00019999,2]
[362384871,1748243443174,-420.0,0.00019999,2]
[362384872,1748243443185,-212.4,0.00019999,2]
[362384873,1748243443196,-420.0,0.00019999,2]
[362384874,1748243443208,-420.0,0.00019999,2]
[362384875,1748243443218,-420.0,0.00019999,2]
[362384876,1748243443229,-420.0,0.00019999,2]
[362384877,1748243443240,-420.0,0.00019999,2]
[362384878,1748243443251,-164.12474944,0.00019999,2]
[362384879,1748243443263,-453.04,0.00019999,2]
[362384880,1748243443273,-426.68719335,0.00019999,2]
[362384881,1748243443284,-420.0,0.00019999,2]
[362384882,1748243443296,-420.0,0.00019999,2]
[362384883,1748243443306,-455.69943349,0.00019999,2]
[362384884,1748243443317,-423.00577221,0.00019999,2]
[362384885,1748243443327,-1092.62,0.00019999,2]
[362384886,1748243443338,-1092.62,0.00019999,2]
[362384887,1748243443349,-1092.62,0.00019999,2]
[362384888,1748243443359,-1092.62,0.00019999,2]
[362384889,1748243443370,-1092.62,0.00019999,2]
[362384890,1748243443380,-1092.62,0.00019999,2]
[362384891,1748243443391,-1092.62,0.00019999,2]
[362384892,1748243443401,-422.59893218,0.00019999,2]
[362384893,1748243443412,-1092.62,0.00019999,2]
[362384894,1748243443423,-1092.62,0.00019999,2]
[362384895,1748243443434,-1092.62,0.00019999,2]
[362384896,1748243443444,-1092.62,0.00019999,2]
[362384897,1748243443455,-1092.62,0.00019999,2]
[362384898,1748243443464,-1092.62,0.00019999,2]
[362384899,1748243443473,-1092.62,0.00019999,2]
[362384900,1748243443484,-1092.62,0.00019999,2]
[362384919,1748243443792,-1092.62,0.00019999,2]
[362384920,1748243443813,-420.0,0.00019999,2]
[362384921,1748243443826,-1092.62,0.00019999,2]
[362384922,1748243443835,-1092.62,0.00019999,2]
[362384923,1748243443845,-1092.62,0.00019999,2]
[362384924,1748243443855,-1092.62,0.00019999,2]
[362384925,1748243443864,-1092.62,0.00019999,2]
[362384926,1748243443873,-1092.62,0.00019999,2]
[362384927,1748243443882,-452.41607968,0.00019999,2]
[362384928,1748243443892,-1092.6558,0.00019999,2]
[362384929,1748243443901,-431.91372376,0.00019999,2]
[362384930,1748243443910,-420.0,0.00019999,2]
[362384931,1748243443920,-420.0,0.00019999,2]
[362384932,1748243443929,-448.70037304,0.00019999,2]